bitfinex-derivatives/quotes_SOLF0:USTF0_20260204
["timestamp","ask_amount","ask_price","bid_price","bid_amount"]
[1770243736575,32.02230991,91.67,91.538,4.08877196]
[1770243736775,32.02230991,91.67,91.547,4.08877196]
[1770243736971,9.8392,91.683,91.547,4.08877196]
[1770243737270,9.8392,91.683,91.56,9.8523]
[1770243737472,9.8392,91.683,91.56,13.94107196]
[1770243737671,9.8412,91.664,91.56,4.08877196]
[1770243738071,9.8412,91.664,91.54,9.8544]
[1770243738072,152.9673,91.735,91.541,4.08877196]
[1770243738274,458.3676,91.842,91.492,460.1126]
[1770243738275,32.02230991,91.75,91.606,4.08877196]
[1770243738471,32.02230991,91.78,91.611,4.20505256]
[1770243738674,9.8323,91.747,91.615,4.20505256]
[1770243738873,32.02230991,91.75,91.615,4.20505256]
[1770243739980,152.9465,91.747,91.615,4.20505256]
[1770243740181,32.02230991,91.75,91.615,4.20505256]
[1770243740381,9.8339,91.731,91.615,4.20505256]
[1770243740681,32.02230991,91.78,91.62,4.2286506]
[1770243740880,9.8317,91.753,91.62,4.2286506]
[1770243741076,9.8317,91.753,91.624,4.2286506]
[1770243741270,152.9183,91.764,91.624,4.2286506]
[1770243741471,32.02230991,91.75,91.624,4.2286506]
[1770243742076,9.836,91.712,91.624,4.2286506]
[1770243742283,32.02230991,91.75,91.624,4.2286506]
[1770243742681,32.02230991,91.75,91.627,9.845]
[1770243742882,32.02230991,91.75,91.624,4.2286506]
[1770243743280,9.8359,91.713,91.624,4.2286506]
[1770243744179,9.8377,91.696,91.594,4.22593699]
[1770243744687,9.8395,91.679,91.594,4.22593699]
[1770243744884,9.8395,91.679,91.527,4.24085557]
[1770243745389,32.02230991,91.66,91.533,4.24085557]
[1770243746386,9.8444,91.634,91.533,4.24085557]
[1770243746785,32.02230991,91.66,91.533,4.24085557]
[1770243746986,9.8457,91.622,91.533,4.24085557]
[1770243747193,32.02230991,91.63,91.533,4.24085557]
[1770243747484,9.8472,91.608,91.533,4.24085557]
[1770243748083,21.84,91.666,91.533,4.24085557]
[1770243748387,9.8455,91.624,91.537,4.24736186]
[1770243749885,9.8469,91.61,91.522,9.8564]
[1770243750085,32.02230991,91.63,91.467,4.25050493]
[1770243750291,32.02230991,91.63,91.471,4.25050493]
[1770243750684,9.8469,91.61,91.503,4.24378738]
[1770243750883,32.02230991,91.63,91.503,4.24378738]
[1770243751389,9.8453,91.625,91.531,4.24378738]
[1770243751791,32.02230991,91.66,91.531,4.24378738]
[1770243752085,21.84,91.666,91.549,4.24378738]
[1770243752689,21.84,91.666,91.492,153.3718]
[1770243752690,9.8439,91.638,91.552,4.20827178]
[1770243753281,9.8425,91.652,91.552,4.20827178]
[1770243753481,32.02230991,91.68,91.552,4.20827178]
[1770243753780,32.02230991,91.71,91.552,4.20827178]
[1770243753979,32.02230991,91.71,91.53,32.02230991]
[1770243753980,9.8409,91.666,91.568,4.20827178]
[1770243754496,9.8409,91.666,91.571,4.12656938]
[1770243755089,152.9334,91.755,91.59,4.12656938]
[1770243755593,32.02230991,91.76,91.621,4.12656938]
[1770243755991,9.8326,91.744,91.655,9.8421]
[1770243756287,19.6436,91.845,91.661,4.12656938]
[1770243756492,9.8267,91.799,91.716,9.8354]
[1770243756683,32.02230991,91.84,91.717,4.08780584]
[1770243756881,21.86,91.865,91.717,4.08780584]
[1770243757091,152.7542,91.863,91.717,4.08780584]
[1770243757291,9.8248,91.817,91.717,13.92320584]
[1770243757493,152.7542,91.863,91.718,4.08780584]
[1770243758092,152.7542,91.863,91.721,4.08780584]
[1770243758093,9.826,91.805,91.721,4.08780584]
[1770243758594,9.826,91.805,91.723,9.8348]
[1770243759292,9.8247,91.817,91.728,4.10390771]
[1770243759489,152.7542,91.863,91.728,4.10390771]
[1770243759689,32.02230991,91.84,91.728,4.10390771]
[1770243760197,9.8245,91.82,91.741,9.8328]
[1770243760396,9.8245,91.82,91.677,153.0625]
[1770243760397,21.86,91.865,91.742,4.10390771]
[1770243760691,21.86,91.865,91.773,3.95126698]
[1770243760692,9.8198,91.864,91.773,3.95126698]
[1770243761286,21.86,91.865,91.777,3.95126698]
[1770243761488,0.07807841,91.903,91.777,3.95126698]
[1770243761688,1.8953887,91.894,91.777,3.95126698]
[1770243761896,0.07807841,91.903,91.812,3.95126698]
[1770243762593,9.8157,91.902,91.812,3.95126698]
[1770243762795,0.07807841,91.903,91.812,3.95126698]
[1770243762997,1.89468698,91.904,91.813,3.85218557]
[1770243763188,0.27624125,91.931,91.813,3.85218557]
[1770243763500,1.89426929,91.944,91.843,3.85218557]
[1770243763695,21.84,92.02,91.881,3.79733117]
[1770243763696,2.17051054,91.994,91.881,3.79733117]
[1770243764197,9.8064,91.989,91.884,3.79733117]
[1770243764698,2.17051054,91.994,91.884,3.79733117]
[1770243765002,9.8095,91.959,91.884,3.79733117]
[1770243765302,2.20971048,92.027,91.884,3.79733117]
[1770243765601,2.20971048,92.027,91.902,3.79733117]
[1770243765797,2.20971048,92.015,91.902,3.79733117]
[1770243766096,154.79691048,91.963,91.869,3.79733117]
[1770243766293,2.20971048,91.957,91.843,3.79733117]
[1770243766494,2.28030142,91.951,91.843,3.79733117]
[1770243766700,2.28030142,91.934,91.771,3.79733117]
[1770243766898,2.28030142,91.928,91.771,3.79733117]
[1770243767201,2.28030142,91.928,91.735,152.9656]
[1770243767202,2.28030142,91.914,91.783,3.79733117]
[1770243767599,9.8172,91.888,91.789,3.79733117]
[1770243767792,1.89438272,91.929,91.789,3.79733117]
[1770243767996,1.89438272,91.929,91.705,459.044]
[1770243767997,2.28030142,91.956,91.81,3.79733117]
[1770243768195,2.28030142,91.956,91.853,3.79733117]
[1770243768196,12.09030142,91.956,91.853,3.79733117]
[1770243768399,2.28030142,91.955,91.853,3.79733117]
[1770243768695,9.8108,91.947,91.853,3.79733117]
[1770243768900,1.77429424,91.985,91.853,3.79733117]
[1770243769102,1.89361992,91.986,91.857,3.79733117]
[1770243769300,1.89361992,91.986,91.856,152.7645]
[1770243769301,9.8057,91.995,91.902,3.79733117]
[1770243769904,1.89306881,92.006,91.902,3.79733117]
[1770243770205,1.77429424,92.035,91.902,3.79733117]
[1770243770511,1.77429424,92.08,91.941,3.79733117]
[1770243771006,1.89151509,92.066,91.946,3.79733117]
[1770243771203,9.7989,92.06,91.946,3.79733117]
[1770243771409,1.89153565,92.066,91.946,3.79733117]
[1770243771608,1.54893075,92.065,91.946,3.79733117]
[1770243771807,9.799,92.058,91.946,3.79733117]
[1770243772003,1.54893075,92.065,91.947,3.79733117]
[1770243772404,9.802,92.03,91.947,3.79733117]
[1770243772601,1.89153565,92.066,91.947,3.79733117]
[1770243772801,1.61215923,92.065,91.947,3.79733117]
[1770243773203,9.8022,92.029,91.947,3.79733117]
[1770243773404,1.61215923,92.045,91.947,3.79733117]
[1770243773606,1.61215923,92.033,91.905,3.79733117]
[1770243774114,9.807,91.983,91.905,3.79733117]
[1770243774306,1.60446363,92.003,91.905,3.79733117]
[1770243774608,1.61758706,91.979,91.879,3.86991105]
[1770243774809,173.73492928,91.99,91.879,3.86991105]
[1770243774810,1.61758706,91.977,91.879,3.86991105]
[1770243775005,1.61758706,91.965,91.811,3.86991105]
[1770243775207,9.8141,91.917,91.834,3.86991105]
[1770243775512,1.61758706,91.955,91.834,3.86991105]
[1770243775709,9.8125,91.931,91.84,3.86991105]
[1770243775913,1.61758706,91.955,91.84,3.86991105]
[1770243776805,1.61243783,91.953,91.84,3.86991105]
[1770243777005,9.8152,91.907,91.84,3.86991105]
[1770243777203,173.78472928,91.96,91.813,3.86991105]
[1770243777204,1.61243783,91.927,91.813,3.86991105]
[1770243777812,1.61243783,91.979,91.813,3.86991105]
[1770243778009,1.61243783,91.979,91.818,3.86991105]
[1770243778211,1.61243783,91.979,91.81,21.19162928]
[1770243778212,9.8121,91.935,91.85,3.86991105]
[1770243778404,1.61243783,91.979,91.85,3.86991105]
[1770243778916,9.8106,91.949,91.861,3.86991105]
[1770243779212,1.50382753,91.977,91.861,3.86991105]
[1770243779604,1.50382753,91.966,91.861,3.86991105]
[1770243779805,152.5788,91.968,91.78,21.19162928]
[1770243779806,3.60795236,91.945,91.78,21.19162928]
[1770243780009,3.60795236,91.945,91.784,152.8843]
[1770243780211,9.8139,91.918,91.832,9.823]
[1770243780406,86.98,91.917,91.78,21.19162928]
[1770243780810,9.8157,91.902,91.78,21.19162928]
[1770243781013,3.60795236,91.916,91.75,21.19162928]
[1770243781414,3.60795236,91.916,91.715,152.9992]
[1770243781415,3.60795236,91.986,91.808,152.8442]
[1770243781611,3.60795236,91.984,91.81,21.19162928]
[1770243781810,3.60795236,91.984,91.841,3.88411029]
[1770243782008,3.60795236,91.984,91.84,21.19162928]
[1770243782009,3.60795236,91.984,91.881,3.88411029]
[1770243782214,86.98,91.983,91.881,3.88411029]
[1770243782416,90.58795236,91.983,91.881,3.88411029]
[1770243782615,9.81,91.955,91.881,3.88411029]
[1770243783315,9.8087,91.968,91.881,3.88411029]
[1770243783918,9.8098,91.957,91.881,3.88411029]
[1770243784118,90.58795236,91.983,91.881,3.88411029]
[1770243784320,3.60795236,91.982,91.881,3.88411029]
[1770243784619,3.60795236,91.982,91.84,21.19162928]
[1770243784620,9.8085,91.969,91.884,3.88411029]
[1770243785211,86.96,91.968,91.886,3.88411029]
[1770243785720,3.60795236,91.966,91.863,3.88411029]
[1770243786822,9.8113,91.943,91.864,9.8196]
[1770243787017,86.96,91.942,91.864,9.8196]
[1770243787417,86.96,91.942,91.863,3.88411029]
[1770243787820,9.812,91.936,91.863,3.88411029]
[1770243788026,9.812,91.936,91.864,9.8197]
[1770243788525,9.8132,91.925,91.863,3.88411029]
[1770243788822,3.60795236,91.941,91.834,3.88411029]
[1770243789419,9.8143,91.915,91.836,9.8226]
[1770243789918,3.60795236,91.941,91.834,3.88411029]
[1770243789919,9.8158,91.9,91.834,3.88411029]
[1770243790927,9.817,91.89,91.834,3.88411029]
[1770243791627,21.19162928,91.96,91.834,3.88411029]
[1770243791628,9.8151,91.907,91.834,3.88411029]
[1770243792123,9.8162,91.897,91.834,3.88411029]
[1770243792321,3.60795236,91.918,91.809,3.88411029]
[1770243792726,9.8198,91.863,91.809,3.88411029]
[1770243793327,9.8186,91.874,91.809,3.88411029]
[1770243793530,3.64860344,91.973,91.809,3.88411029]
[1770243793723,3.64860344,91.951,91.83,10.49485393]
[1770243794025,3.64860344,91.951,91.78,21.19162928]
[1770243794026,3.64860344,91.951,91.831,0.67165393]
[1770243794425,3.64860344,91.951,91.846,0.67165393]
[1770243794619,3.64860344,91.951,91.78,21.19162928]
[1770243794620,3.65972996,91.977,91.856,0.6494009]
[1770243794823,3.65972996,92.029,91.931,9.8124]
[1770243795023,3.65972996,92.029,91.915,0.6494009]
[1770243795522,3.65972996,92.029,91.917,0.6494009]
[1770243796032,9.8034,92.017,91.931,9.8125]
[1770243796229,3.65972996,92.016,91.917,0.6494009]
[1770243796724,13.46322996,92.016,91.931,0.95177352]
[1770243796922,3.65972996,92.016,91.931,0.95177352]
[1770243797126,3.60795236,92.059,91.931,0.95177352]
[1770243797324,3.60795236,92.059,91.871,19.6378]
[1770243797325,3.60795236,92.059,91.939,0.95177352]
[1770243797926,3.60795236,92.028,91.94,9.8115]
[1770243798128,3.60795236,92.065,91.939,0.95177352]
[1770243798630,9.8005,92.044,91.966,9.8087]
[1770243798826,3.60795236,92.065,91.939,0.95177352]
[1770243799029,9.8018,92.032,91.954,0.95215968]
[1770243799327,3.60795236,92.065,91.954,0.95215968]
[1770243799526,9.7992,92.057,91.973,9.8079]
[1770243799831,3.60795236,92.065,91.974,0.95215968]
[1770243800232,3.60795236,92.081,91.974,0.95215968]
[1770243800728,3.60795236,92.081,91.987,0.95184424]
[1770243800920,3.60795236,92.107,91.987,0.95184424]
[1770243801121,3.60795236,92.107,91.96,21.19162928]
[1770243801122,3.60795236,92.107,92.017,0.95184424]
[1770243801433,3.60795236,92.107,91.992,0.95184424]
[1770243801733,3.60795236,92.103,91.992,0.95184424]
[1770243801931,3.60795236,92.073,91.992,0.95184424]
[1770243803626,9.7984,92.064,91.992,0.95184424]
[1770243803830,3.6901811,92.13,91.992,0.95184424]
[1770243804236,3.6901811,92.112,92.031,9.8018]
[1770243804637,3.6901811,92.112,92.031,0.89529243]
[1770243805234,3.6901811,92.112,92.0,0.89529243]
[1770243805537,9.7988,92.061,92.0,0.89529243]
[1770243805835,3.6901811,92.101,92.0,0.89529243]
[1770243806234,3.6901811,92.128,92.0,0.89529243]
[1770243806532,8.47596125,92.122,92.0,0.89529243]
[1770243806734,8.47596125,92.071,92.0,0.89529243]
[1770243807736,8.47596125,92.071,91.931,152.655]
[1770243807934,8.47596125,92.064,91.898,9.95607702]
[1770243808132,8.47596125,92.064,91.89,21.19162928]
[1770243808334,8.47596125,92.062,91.92,21.19162928]
[1770243808539,8.47596125,92.062,91.927,152.6616]
[1770243808730,8.47596125,92.062,91.975,9.8087]
[1770243809534,8.47596125,92.062,91.963,9.8101]
[1770243809734,9.8002,92.057,91.929,152.6584]
[1770243809929,9.8002,92.057,91.92,21.19162928]
[1770243810336,8.4817475,92.063,91.92,21.19162928]
[1770243810534,8.26384521,92.15,91.985,152.5653]
[1770243810735,8.26384521,92.15,92.01,21.19162928]
[1770243810936,8.26384521,92.148,92.01,21.19162928]
[1770243811236,9.7917,92.136,92.045,9.8013]
[1770243811433,8.26384521,92.148,92.045,9.8013]
[1770243811936,8.26384521,92.148,91.991,152.5551]
[1770243812135,8.26384521,92.148,91.976,152.5792]
[1770243812136,8.26384521,92.148,92.0,21.19162928]
[1770243812332,9.7939,92.115,92.0,21.19162928]
[1770243812534,8.26384521,92.148,92.0,21.19162928]
[1770243812931,9.7938,92.116,92.0,21.19162928]
[1770243813131,86.86,92.115,92.028,9.8031]
[1770243814232,9.7942,92.113,92.028,9.8031]
[1770243814535,8.25187741,92.114,92.016,9.8043]
[1770243814937,8.25187741,92.114,91.979,152.5743]
[1770243815132,8.25187741,92.114,91.988,152.559]
[1770243815438,86.84,92.114,92.003,152.5347]
[1770243815740,86.84,92.114,92.0,21.19162928]
[1770243815939,86.84,92.114,92.044,9.8014]
[1770243817040,8.2890594,92.112,91.985,152.5641]
[1770243817240,8.2890594,92.112,91.99,152.5567]
[1770243817437,1.88974839,92.17,92.01,21.19162928]
[1770243817438,86.84,92.127,92.01,21.19162928]
[1770243817634,8.2890594,92.213,92.07,21.19162928]
[1770243817836,9.7912,92.141,92.01,21.19162928]
[1770243818040,95.1290594,92.14,92.01,21.19162928]
[1770243818339,8.2890594,92.14,92.02,152.5069]
[1770243818541,8.2890594,92.14,92.011,152.5222]
[1770243818739,8.2890594,92.14,92.018,19.6083]
[1770243818936,9.7915,92.138,92.063,9.7994]
[1770243819243,8.2890594,92.14,91.989,19.6146]
[1770243819536,8.31959473,92.129,92.046,9.8012]
[1770243819743,8.31959473,92.129,91.999,152.5413]
[1770243820042,8.31959473,92.129,91.989,152.5582]
[1770243820043,8.31959473,92.129,92.061,9.7996]
[1770243820236,8.31959473,92.129,92.01,21.19162928]
[1770243820736,8.33426656,92.127,91.98,21.19162928]
[1770243821141,8.33426656,92.097,92.02,9.8039]
[1770243821343,8.33426656,92.097,91.95,21.19162928]
[1770243821539,8.33426656,92.054,91.926,19.6283]
[1770243821844,8.33426656,92.054,91.926,172.2939]
[1770243822047,21.19162928,92.11,91.946,152.633]
[1770243822048,8.33426656,92.109,91.946,152.633]
[1770243822339,8.33426656,92.107,91.946,152.633]
[1770243822544,18.16330923,92.079,91.94,40.81702928]
[1770243822741,8.36530923,92.078,91.94,40.81702928]
[1770243823042,8.36530923,92.078,91.95,152.6389]
[1770243823248,8.36530923,92.078,92.009,9.8061]
[1770243823643,9.799,92.077,91.994,9.8078]
[1770243823843,8.36530923,92.078,91.95,152.6376]
[1770243824043,8.36530923,92.078,91.946,19.6258]
[1770243824344,8.36530923,92.067,91.988,9.8084]
[1770243825150,8.49419071,92.066,91.975,9.8097]
[1770243825443,9.8009,92.059,91.975,9.8097]
[1770243825948,9.802,92.049,91.964,9.8109]
[1770243826447,9.802,92.049,91.94,21.19162928]
[1770243826448,8.49419071,92.059,91.94,21.19162928]
[1770243826844,8.5335139,92.109,91.944,152.648]
[1770243827044,8.5335139,92.107,91.945,152.6472]
[1770243827645,86.82,92.108,91.94,21.19162928]
[1770243827646,9.7995,92.072,91.94,21.19162928]
[1770243827946,18.3330139,92.072,91.94,21.19162928]
[1770243828147,86.82,92.108,91.94,21.19162928]
[1770243828148,8.5335139,92.071,91.94,21.19162928]
[1770243830351,8.55960376,92.069,91.977,9.8095]
[1770243830944,8.6023814,92.063,91.977,9.8095]
[1770243831150,8.6023814,92.063,91.94,21.19162928]
[1770243831151,8.6023814,92.063,91.966,9.8107]
[1770243832249,9.8035,92.035,91.953,9.812]
[1770243832853,9.8035,92.035,91.963,9.8111]
[1770243833452,8.6023814,92.039,91.95,8.30444773]
[1770243833847,8.62202607,92.079,91.95,8.30444773]
[1770243834053,8.62202607,92.079,91.97,8.30444773]
[1770243834450,8.63241007,92.064,91.927,152.6766]
[1770243834651,8.63241007,92.064,91.936,19.6278]
[1770243835052,8.63241007,92.064,91.93,31.76244501]
[1770243835453,8.63241007,92.064,91.933,152.6671]
[1770243835652,8.63241007,92.064,91.936,152.6616]
[1770243835851,8.63241007,92.064,91.99,9.8081]
[1770243836753,31.76244501,92.12,91.99,9.8081]
[1770243836754,8.64385691,92.063,91.99,9.8081]
[1770243837354,8.64385691,92.063,91.999,9.8072]
[1770243838455,8.64385691,92.063,91.955,152.6303]
[1770243838647,8.69273885,92.123,91.965,152.6132]
[1770243838852,8.69273885,92.123,91.966,9.95607702]
[1770243839051,8.69273885,92.096,91.971,152.6034]
[1770243839253,8.69273885,92.096,91.966,9.95607702]
[1770243839254,8.69320265,92.179,92.001,152.5538]
[1770243839454,9.7906,92.155,92.039,19.6059]
[1770243839652,8.69320265,92.156,92.038,9.95607702]
[1770243840055,8.69320265,92.156,92.042,9.95607702]
[1770243840360,8.69320265,92.156,92.05,31.76244501]
[1770243840552,8.69320265,92.156,92.099,9.7965]
[1770243840860,8.80889659,92.209,92.085,152.4152]
[1770243841049,8.80889659,92.209,92.145,9.7916]
[1770243841247,8.80889659,92.239,92.121,152.3547]
[1770243841455,8.80889659,92.268,92.127,152.3446]
[1770243841652,8.80889659,92.268,92.141,152.3216]
[1770243841855,8.80889659,92.292,92.176,152.2645]
[1770243842058,31.76244501,92.34,92.248,152.1456]
[1770243842059,1.88689987,92.34,92.248,152.1456]
[1770243842358,151.8806,92.41,92.23,31.76244501]
[1770243842558,9.7659,92.389,92.26,31.76244501]
[1770243842760,31.76244501,92.43,92.26,31.76244501]
[1770243842952,151.9601,92.361,92.202,9.95607702]
[1770243843147,151.9601,92.361,92.18,31.76244501]
[1770243843148,152.0116,92.33,92.172,9.7888]
[1770243843349,152.0116,92.33,92.15,31.76244501]
[1770243843350,31.76244501,92.33,92.15,31.76244501]
[1770243843550,9.7735,92.317,92.205,9.7853]
[1770243843853,151.9609,92.361,92.18,31.76244501]
[1770243844157,4.4026756,92.299,92.184,9.7875]
[1770243844464,4.60989782,92.324,92.21,152.2082]
[1770243844656,4.60989782,92.349,92.252,9.7803]
[1770243844851,4.60989782,92.349,92.21,31.76244501]
[1770243845056,9.7718,92.333,92.217,9.784]
[1770243845251,151.9831,92.347,92.218,3.34497582]
[1770243845558,1.88613286,92.343,92.218,3.34497582]
[1770243845763,9.7701,92.349,92.242,3.34497582]
[1770243846057,151.9966,92.339,92.181,3.34497582]
[1770243846266,9.7755,92.299,92.187,3.34497582]
[1770243846460,31.76244501,92.34,92.187,3.34497582]
[1770243846857,9.7719,92.333,92.211,9.7846]
[1770243847062,3.93512213,92.332,92.212,3.46687321]
[1770243847355,31.76244501,92.37,92.212,3.46687321]
[1770243847356,3.93512213,92.311,92.212,3.46687321]
[1770243847862,3.93512213,92.311,92.181,3.46687321]
[1770243848365,3.93512213,92.304,92.192,3.46687321]
[1770243848765,3.93512213,92.329,92.211,3.48061103]
[1770243848962,3.93512213,92.329,92.233,3.48061103]
[1770243849360,3.93512213,92.329,92.181,3.48061103]
[1770243849662,3.93512213,92.329,92.18,31.76244501]
[1770243849663,3.93512213,92.328,92.216,3.48061103]
[1770243850263,13.71112213,92.293,92.216,3.48061103]
[1770243850468,3.93512213,92.321,92.216,3.48061103]
[1770243851266,3.93512213,92.316,92.216,3.48061103]
[1770243851871,3.93512213,92.316,92.218,3.47213779]
[1770243852271,9.7719,92.332,92.218,3.47213779]
[1770243852566,3.93512213,92.329,92.218,3.47213779]
[1770243853560,3.93512213,92.329,92.21,31.76244501]
[1770243853561,3.93512213,92.362,92.238,3.7330392]
[1770243853761,3.93512213,92.362,92.2,152.2245]
[1770243853762,3.93512213,92.362,92.241,3.7330392]
[1770243854264,3.93512213,92.345,92.243,3.7330392]
[1770243854864,3.93512213,92.345,92.254,9.7801]
[1770243855066,3.93512213,92.345,92.255,3.73845314]
[1770243855569,3.93512213,92.345,92.261,3.73845314]
[1770243855875,3.93512213,92.412,92.261,3.73845314]
[1770243856265,3.93512213,92.384,92.27,3.73845314]
[1770243856466,3.93512213,92.407,92.271,3.73845314]
[1770243856672,3.93512213,92.407,92.27,31.76244501]
[1770243856673,3.93512213,92.407,92.315,3.71932955]
[1770243857171,3.93512213,92.407,92.291,3.71932955]
[1770243857372,3.93512213,92.404,92.261,3.71932955]
[1770243857968,3.93512213,92.387,92.27,31.76244501]
[1770243858168,3.93512213,92.387,92.271,3.71932955]
[1770243858367,3.93512213,92.387,92.302,3.71932955]
[1770243858969,3.93512213,92.412,92.302,3.71932955]
[1770243859168,3.93512213,92.412,92.32,3.6920429]
[1770243860770,3.93512213,92.412,92.33,9.7721]
[1770243860972,3.93512213,92.412,92.33,3.73845314]
[1770243862376,3.93512213,92.45,92.333,3.73845314]
[1770243862879,21.72,92.47,92.31,31.76244501]
[1770243862880,3.93512213,92.448,92.348,3.73845314]
[1770243863281,3.93512213,92.432,92.348,3.73845314]
[1770243863783,3.93512213,92.414,92.281,3.73845314]
[1770243863982,3.93512213,92.414,92.322,3.79166289]
[1770243864379,3.93512213,92.414,92.324,9.7726]
[1770243864580,3.93512213,92.414,92.281,3.74906457]
[1770243864773,3.93512213,92.414,92.291,3.74906457]
[1770243864978,3.93512213,92.414,92.319,3.74906457]
[1770243865376,13.60786948,92.362,92.266,3.74906457]
[1770243865573,3.83916948,92.361,92.266,3.74906457]
[1770243865871,151.9065,92.394,92.266,3.74906457]
[1770243865872,3.83916948,92.353,92.266,13.52786457]
[1770243866276,3.83916948,92.353,92.231,3.74906457]
[1770243866484,3.83916948,92.339,92.25,9.7805]
[1770243866682,3.83916948,92.339,92.231,3.74906457]
[1770243867181,3.83916948,92.339,92.259,9.7796]
[1770243867781,3.83916948,92.338,92.255,3.89912689]
[1770243868378,3.83916948,92.331,92.255,3.89912689]
[1770243868579,3.83916948,92.331,92.16,152.2901]
[1770243868580,3.83916948,92.331,92.221,3.92454403]
[1770243869082,3.83916948,92.331,92.19,31.76244501]
[1770243869083,3.83916948,92.331,92.223,3.92454403]
[1770243869485,3.83916948,92.331,92.249,3.92454403]
[1770243870190,3.83916948,92.329,92.249,3.92454403]
[1770243870682,3.83916948,92.315,92.228,9.7829]
[1770243871283,3.83916948,92.309,92.228,9.7829]
[1770243871786,13.61356948,92.309,92.226,3.92668484]
[1770243872080,3.83916948,92.308,92.203,3.92668484]
[1770243872583,3.83916948,92.27,92.177,3.92668484]
[1770243873276,3.83916948,92.248,92.177,3.92668484]
[1770243873478,3.83916948,92.248,92.16,9.79]
[1770243873680,3.83916948,92.248,92.155,3.92668484]
[1770243874081,3.83916948,92.248,92.128,9.7935]
[1770243874283,3.83916948,92.199,92.124,3.92668484]
[1770243874873,3.83916948,92.197,92.097,3.92668484]
[1770243875281,3.83916948,92.197,92.018,152.5262]
[1770243875282,3.83916948,92.197,92.041,3.92668484]
[1770243875675,3.83916948,92.172,92.072,3.92668484]
[1770243876481,3.83916948,92.157,92.049,3.92668484]
[1770243877082,3.83916948,92.157,92.04,31.76244501]
[1770243877083,3.83916948,92.157,92.072,13.72618484]
[1770243877284,3.83916948,92.157,92.073,3.92668484]
[1770243877886,3.83916948,92.157,92.02,31.76244501]
[1770243877887,3.83916948,92.157,92.021,3.92668484]
[1770243878387,3.83916948,92.13,92.031,3.92668484]
[1770243878788,13.63256948,92.13,92.044,3.92668484]
[1770243879288,152.2564,92.182,92.001,3.92668484]
[1770243879289,3.83916948,92.104,92.001,3.92668484]
[1770243879883,3.83916948,92.104,92.004,3.92668484]
[1770243880288,3.83916948,92.104,91.97,31.76244501]
[1770243880289,3.83916948,92.104,92.009,3.92668484]
[1770243880885,9.7962,92.103,92.012,3.92668484]
[1770243881091,3.83916948,92.104,92.012,3.92668484]
[1770243881480,3.83916948,92.131,92.014,3.92668484]
[1770243882289,3.83916948,92.131,92.056,9.8011]
[1770243882490,3.83916948,92.156,92.057,3.92668484]
[1770243883195,3.83916948,92.153,92.057,3.92668484]
[1770243884293,9.791,92.152,92.059,3.92668484]
[1770243884493,3.83916948,92.151,92.059,3.92668484]
[1770243884894,3.83916948,92.151,92.061,3.92668484]
[1770243885296,9.7913,92.15,92.061,3.92668484]
[1770243885499,9.7913,92.15,92.063,3.92668484]
[1770243885898,3.83916948,92.174,92.063,3.92668484]
[1770243886099,3.83916948,92.174,92.077,3.92668484]
[1770243887502,3.83916948,92.17,92.082,3.92668484]
[1770243888099,3.83916948,92.17,92.086,3.92668484]
[1770243888300,3.83916948,92.194,92.086,3.92668484]
[1770243888498,9.7859,92.193,92.107,3.92668484]
[1770243889603,3.83916948,92.194,92.107,3.92668484]
[1770243890104,3.83916948,92.194,92.114,3.92668484]
[1770243891099,9.7838,92.213,92.13,13.71928484]
[1770243891305,9.7838,92.213,92.131,3.92668484]
[1770243891898,9.7847,92.204,92.118,9.7937]
[1770243892102,3.83916948,92.226,92.101,3.92668484]
[1770243892510,3.83916948,92.226,92.124,3.92668484]
[1770243893204,3.83916948,92.195,92.124,3.92668484]
[1770243894304,6.90718587,92.242,92.13,31.76244501]
[1770243894509,6.90718587,92.242,92.15,21.08432]
[1770243895007,6.90718587,92.242,92.163,9.7888]
[1770243895508,16.68768587,92.242,92.163,9.7888]
[1770243895710,7.06163359,92.272,92.15,21.08432]
[1770243896203,9.7811,92.236,92.15,30.87452]
[1770243896604,9.7811,92.236,92.15,9.7902]
[1770243897111,16.85369615,92.243,92.12,21.08432]
[1770243897309,7.07329615,92.242,92.12,21.08432]
[1770243897505,9.7812,92.235,92.154,9.7898]
[1770243898212,7.07329615,92.242,92.12,21.08432]
[1770243898512,7.07329615,92.242,92.16,8.26236977]
[1770243898809,7.07329615,92.242,92.073,152.4197]
[1770243898810,7.07329615,92.242,92.14,8.26236977]
[1770243900107,7.1453904,92.279,92.16,8.26236977]
[1770243900307,7.1453904,92.279,92.2,8.26236977]
[1770243900515,7.22685511,92.332,92.251,9.7794]
[1770243900716,7.22685511,92.332,92.21,8.26236977]
[1770243900906,7.22685511,92.332,92.134,152.3183]
[1770243900907,151.9987,92.329,92.19,8.26236977]